Cogmind - Beta 14 @@@ ROGUE MODE // 2024.10.07 @ 11:30:14 Player: anastasia Result: Destroyed by as-10163 with Assembled Rifle Performance ------------- Evolutions (0) 0 Regions Visited (2) 400 Robots Destroyed (11) 55 Value Destroyed (233) 233 Prototype IDs (0) 0 Alien Tech Used (0) 0 Bonus (0) 0 TOTAL SCORE: 688 Bonus ------- None Cogmind --------- Core Integrity 0/250 Matter 219/300 Energy 125/125 System Corruption 0% Temperature Warning (354) Movement Core (300) Ox5 Location -10/Mines Parts ------- > --- POWER (1) -------- Light Ion Engine > --- PROPULSION (2) --- (None) > --- UTILITY (2) ------ Medium Storage Unit > --- WEAPON (2) ------- Particle Gun > --- INVENTORY (10) --- Small Laser Peak State ------------ > --- POWER ------------ Light Ion Engine > --- PROPULSION ------- Aluminum Leg Aluminum Leg > --- UTILITY ---------- Medium Storage Unit > --- WEAPON ----------- Particle Gun Bore Cannon > --- INVENTORY -------- Small Laser [Rating: 11] Favorites ----------- Power Ion Engine Engine Ion Engine Propulsion Light Treads Treads Light Treads Leg Aluminum Leg Wheel Wheel Utility Medium Storage Unit Storage Medium Storage Unit Protection Backup Plating I Weapon Assault Rifle Energy Gun EM Pulse Gun Ballistic Gun Assault Rifle Ballistic Cannon Bore Cannon Build | -11 -10 -10 ------- Run | Yrd Mat Min Slots Evolved . | . . . Power . | . . . Propulsion . | . . . Utility . | . . . Weapon . | . . . Parts Attached 23 | 6 16 1 Power 5 | 1 4 . Engine 5 | 1 4 . Core . | . . . Reactor . | . . . Propulsion 9 | 2 7 . Treads 4 | 2 2 . Leg 3 | . 3 . Wheel 2 | . 2 . Hover . | . . . Flight . | . . . Utility 3 | 1 2 . Device . | . . . Storage 2 | 1 1 . Processor . | . . . Hackware . | . . . Protection 1 | . 1 . Artifact . | . . . Weapon 6 | 2 3 1 Energy Gun 4 | 1 3 . Energy Cannon . | . . . Ballistic Gun 1 | 1 . . Ballistic Cannon 1 | . . 1 Launcher . | . . . Special Weapon . | . . . Impact Weapon . | . . . Slashing Weapon . | . . . Piercing Weapon . | . . . Special Melee Weapon . | . . . Unidentified Prototypes . | . . . Parts Lost 10 | . 8 2 Power 2 | . 2 . Propulsion 5 | . 3 2 Utility 1 | . 1 . Weapon 2 | . 2 . Highest Loss Streak 4 | . 4 2 To Critical Strikes . | . . . Average Slot Usage (%) 79 | . 78 85 Engine 12 | . 12 14 Treads 18 | . 18 . Leg 3 | . 2 28 Wheel 4 | . 4 . Storage 14 | . 14 14 Protection 1 | . 1 . Energy Gun 14 | . 14 21 Ballistic Gun 9 | . 9 . Peak Build Rating 11 | 6 7 11 Average Rating 5 | 5 5 7 On Entrance 4 | . 6 7 Naked Turns . | . . . Heaviest Build 25 | 14 19 25 Greatest Support 40 | 40 40 20 Greatest Overweight (x) 4 | 1 4 2 Average Overweight (x) . | . . . Largest Inventory Capacity 10 | 8 10 10 Average Capacity 9 | 7 9 10 Most Carried 5 | 1 5 1 Average Carried 1 | . 1 . Final Capacity 10 | 8 10 10 Final Carried 1 | 1 . 1 Class Distribution -------------------- 89% | Mutant 10% | Scavenger-Mutant Dominant Class ---------------- Mutant | -10/Materials Scavenger-Mutant | -10/Mines Resources | -11 -10 -10 ----------- Run | Yrd Mat Min Matter Collected 346 | 224 122 . Remotely . | . . . Salvage Created 295 | . 289 6 Parts 22 | . 22 . Haulers Intercepted . | . . . Recyclers Shooed 1 | . 1 . Parts Field Recycled . | . . . Retrieved Matter . | . . . Parts Self-Destructed . | . . . Prevented . | . . . Kills | -11 -10 -10 ------- Run | Yrd Mat Min Combat Hostiles Destroyed 8 | . 7 1 Guns 4 | . 4 . Cannons 1 | . . 1 AOE 3 | . 3 . Classes Destroyed 6 | . 5 1 Worker 2 | . 2 . Recycler 1 | . 1 . Watcher 1 | . 1 . Swarmer 3 | . 3 . Grunt 4 | . 4 . Assembled 1 | . . 1 Best Kill Streak 7 | . 7 1 Combat Bots Only 5 | . 5 1 Max Kills in Single Turn 3 | . 3 1 Gunslinging . | . . . Exploded 1 | . 1 . Melee . | . . . Uniques/NPCs Destroyed . | . . . Combat | -11 -10 -10 -------- Run | Yrd Mat Min Hostile Shots Fired 103 | . 50 53 Missed 22 | . 13 9 Damage Taken 1327 | . 669 658 Core 261 | . 54 207 Absorbed by Shields . | . . . Core Remaining (%) 100 | 100 . . Volleys Fired 31 | . 25 6 Largest 2 | . 2 2 Hottest 122 | . 60 122 Shots Fired 50 | . 39 11 Gun 48 | . 39 9 Cannon 2 | . . 2 Launcher . | . . . Special . | . . . Kinetic 16 | . 14 2 Thermal 20 | . 11 9 Explosive . | . . . Electromagnetic 14 | . 14 . Robot Hit Streak 8 | . 8 7 Robot Miss Streak 4 | . 4 3 Penetration Max . | . . . Secondary Targets . | . . . Shots Hit Robots 32 | . 25 7 Core Hits 20 | . 16 4 Critical Kills 1 | . . 1 Critical Parts Destroyed . | . . . Critical Strikes 1 | . . 1 Destroy 1 | . . 1 Melee Attacks . | . . . Impact . | . . . Slashing . | . . . Piercing . | . . . Sneak Attacks . | . . . Combat Hostiles . | . . . Follow-up Attacks . | . . . Damage Inflicted 734 | . 581 153 Guns 405 | . 283 122 Cannons 31 | . . 31 Explosions 286 | . 286 . Melee . | . . . Ramming 12 | . 12 . Kinetic 155 | . 124 31 Thermal 276 | . 154 122 Explosive 202 | . 202 . Electromagnetic 89 | . 89 . Impact . | . . . Slashing . | . . . Piercing . | . . . Highest Corruption . | . . . Average Corruption . | . . . Corruption Purged . | . . . Corruption Blocked . | . . . Overload Shots . | . . . Overflow Damage 76 | . 76 . Projectiles . | . . . Explosions 76 | . 76 . Melee . | . . . Knockbacks . | . . . Impact . | . . . Kinetic . | . . . Secondary . | . . . Self-Inflicted Damage 272 | . 272 . Shots 4 | . 4 . Rammed 3 | . 3 . Targets Rammed 3 | . 3 . Kicked . | . . . Crushed . | . . . Highest Temperature 354 | . 81 354 Average Temperature 75 | . 26 172 Received Heat Transfer 434 | . 174 260 Siege Activations . | . . . Robots Corrupted . | . . . Combat Hostiles . | . . . Parts Fried 1 | . 1 . Impact Corruptions . | . . . Robots Melted . | . . . Combat Hostiles . | . . . Parts Melted . | . . . Heat Transferred 447 | . 150 297 Parts Sabotaged . | . . . Parts Stolen . | . . . Parts Stripped . | . . . Power Chain Reactions 2 | . 2 . Alert | -11 -10 -10 ------- Run | Yrd Mat Min Peak Influence 161 | . 161 26 Initial 25 | . . 25 Average 30 | . 35 20 Maximum Alert Level . | . . . Low Security (%) 100 | 100 100 100 Level 1 . | . . . Level 2 . | . . . Level 3 . | . . . Level 4 . | . . . Level 5 . | . . . High Security . | . . . Max Security . | . . . Squads Dispatched 1 | . 1 . Investigation . | . . . Extermination . | . . . Reinforcement 1 | . 1 . Assault . | . . . Garrison . | . . . Intercept . | . . . Searches Triggered . | . . . Construction Impeded . | . . . Haulers Reinforced . | . . . Active Scanning Responses . | . . . Cargo Convoy Interrupts . | . . . Stealth | -11 -10 -10 --------- Run | Yrd Mat Min Distress Signals 3 | . 3 . Communications Jammed . | . . . Distress Signals . | . . . Times Spotted 37 | . 15 22 Peak Tracking Total 22 | . 6 22 Tactical Retreats 1 | . . 1 Traps | -11 -10 -10 ------- Run | Yrd Mat Min Traps Triggered 3 | . 3 . Indirectly . | . . . Trap Hack Attempts . | . . . Triggered . | . . . Disarmed . | . . . Reprogrammed . | . . . Reused . | . . . Traps Extracted . | . . . Installed . | . . . Triggered . | . . . Machines | -11 -10 -10 ---------- Run | Yrd Mat Min Machines Disabled 3 | . 3 . Max in Single Turn 2 | . 2 . Machines Repaired . | . . . Machines Dismantled . | . . . Machines Sabotaged . | . . . Overloaded Fab Kills . | . . . Hacking | -11 -10 -10 --------- Run | Yrd Mat Min Machines Accessed 1 | . 1 . Terminals 1 | . 1 . Fabricators . | . . . Repair Stations . | . . . Recycling Units . | . . . Scanalyzers . | . . . Garrison Access . | . . . Total Hacks 1 | . 1 . Successful 1 | . 1 . Failed . | . . . Catastrophic . | . . . Database Lockouts . | . . . Manual . | . . . Terminals 1 | . 1 . Fabricators . | . . . Repair Stations . | . . . Recycling Units . | . . . Scanalyzers . | . . . Garrison Access . | . . . Terminal Hacks 1 | . 1 . Hauler Manifests 1 | . 1 . Fabricator Hacks . | . . . Repair Station Hacks . | . . . Recycling Unit Hacks . | . . . Scanalyzer . | . . . Garrison Access Hacks . | . . . Unauthorized Hacks . | . . . Terminals . | . . . Fabricators . | . . . Repair Stations . | . . . Recycling Units . | . . . Scanalyzers . | . . . Garrison Access . | . . . Data Cores Recovered . | . . . Used . | . . . Hacking Detections . | . . . Full Trace Events . | . . . Feedback Events . | . . . Feedback Blocked . | . . . Robot Schematics Acquired . | . . . Robots Built . | . . . Authchips . | . . . Time . | . . . Total Robot Build Rating . | . . . Part Schematics Acquired . | . . . Parts Built . | . . . Authchips . | . . . Time . | . . . Total Part Build Rating . | . . . Parts Repaired . | . . . Time . | . . . Parts Recycled . | . . . Recycled Matter . | . . . Retrieved Matter . | . . . Retrieved Components . | . . . Parts Scanalyzed . | . . . Part Schematics Acquired . | . . . Parts Damaged . | . . . Bothacking | -11 -10 -10 ------------ Run | Yrd Mat Min Used RIF Installer . | . . . Robots Hacked . | . . . Non-combat . | . . . Combat . | . . . Robot Hacks Applied . | . . . Relay Couplers Released . | . . . Fabnet Peak Effective % . | . . . Robots Rewired . | . . . Allies Hacked . | . . . Hacks Repelled . | . . . Allies | -11 -10 -10 -------- Run | Yrd Mat Min Total Allies . | . . . Largest Group . | . . . Highest-Rated Group . | . . . Highest-Rated Ally . | . . . Total Orders . | . . . Ally Attacks . | . . . Total Damage . | . . . Kills . | . . . Allies Corrupted . | . . . Allies Melted . | . . . Intel | -11 -10 -10 ------- Run | Yrd Mat Min Robot Analysis Total . | . . . Derelict Logs Recovered . | . . . Drone Launches . | . . . Drone Recoveries . | . . . Exploration | -11 -10 -10 ------------- Run | Yrd Mat Min Turns Passed 577 | 74 478 25 Spaces Moved 301 | 44 253 4 Core 11 | 5 6 . Treads 206 | 39 167 . Legs 31 | . 27 4 Wheels 53 | . 53 . Hover . | . . . Flight . | . . . Fastest Speed 50 | 50 80 120 Average Speed 142 | 148 141 155 Slowest Speed 260 | 160 250 260 Overloaded Moves . | . . . Propulsion Burnouts . | . . . Robots Hopped . | . . . Cave-ins Triggered . | . . . Exploration Rate (%) 15 | 3 38 4 Regions Visited 2 Branch Regions 1 Pre-discovered Areas . | . . . Known Exits Taken . | . . . Unknown Exits Taken 2 | 1 1 . Scrap Searched . | . . . Spaces Dug . | . . . Terrain Destroyed 39 | . 38 1 Melee . | . . . Projectile 1 | . . 1 AOE 38 | . 38 . Terrain Rammed . | . . . Walls Destroyed . | . . . Machines Disabled . | . . . Actions | -11 -10 -10 --------- Run | Yrd Mat Min Total 392 | 50 330 12 Wait 24 | . 24 . Move 299 | 43 252 4 Hop . | . . . Pick Up 10 | 1 8 1 Fast Attach 10 | 6 4 . Attach 8 | . 8 . Detach . | . . . Swap 5 | . 4 1 Drop 2 | . 2 . Fire 31 | . 25 6 Melee . | . . . Ram 3 | . 3 . Kick . | . . . Crush . | . . . Escape Stasis . | . . . Rewire . | . . . Trap . | . . . Miscellaneous . | . . . Route ------- -11/Scrapyard -10/Materials -10/Mines History --------- Turn | Location | Event 7 | -11/Scrapyard | Discovered new exit (range 15) 75 | -11/Scrapyard | Entered Materials 302 | -10/Materials | Build established: Mutant 449 | -10/Materials | Lost 4 parts (2n2w) 536 | -10/Materials | Lost 4 parts (2p1n1u) 541 | -10/Materials | Discovered new exit (range 11) 553 | -10/Materials | Entered Mines 554 | -10/Mines | Assembled infested the area 559 | -10/Mines | Assisted by a Guerilla fighting off Assembled 569 | -10/Mines | Core integrity fell below 50% 575 | -10/Mines | Core integrity fell below 20% 578 | -10/Mines | Destroyed by as-10163 with Assembled Rifle Last Messages --------------- 00560_ as-40678 destroyed. 00561_ G-47 Trooper heat spikes uncontrollably. 00562_ HV Slug penetrates as-38290. 00562_ as-38290 suffers critical hit (Destroy). 00562_ as-38290 knocked back. 00562_ HV Slug penetrates as-38290. 00562_ HV Slug penetrates as-31758. 00562_ as-31758 knocked back. 00562_ as-53458 destroyed. 00563_ 7N-G4X(h) destroyed. 00566_ G-47 Trooper heat damages Particle Gun. 00566_ Acquired Bore Cannon. 00568_ G-47 Trooper destroyed. 00571_ Aluminum Leg destroyed. 00573_ as-98134 destroyed. 00574_ Critical hit (Burn: +80). 00574_ as-09660 suffers critical hit (Destroy). 00574_ as-09660 destroyed. 00575_ Bore Cannon severed. 00577_ Knocked back. Map ----- +----------------------------------------------------+ | ???????????????????????????? | | ???????????????????????????? | | ???????????????????????????? | | ???????????????????????????? | | ???????????????????????????? | | ???????????????????????????? | | ???????????????????????????? | | ???????????????????????????? | | ???????????????????????????? | | ??? ?????????????????????? | | ???" ?????????????????????? | | ??# #????????????????????? | | ??# ##???????????????????? | | ??? ##??????????????????? | | ??? #??????????????????? | | ??? ???????????????????? | | ??? ???????????????????? | | ??? a ????????????????????? | | ???#%% ????????????????????? | | ???# a#????????????????????? | | ???#aa#????????????????????? | | ???#%a#????????????????????? | | ??##[=####?????????????????? | | ??#%aaa ##????????????????? | | ??#aaaa ##???????????????? | | ??#@!aa #???????????????? | | ??## #???????????????? | | ???## ??????????? | | ????##### #?????????? | | ??????????########?????????? | | ???????????????????????????? | | ???????????????????????????? | | | | | | | | | | | | | | | | | | | | | | | | | | | | | | | | | | | | | +----------------------------------------------------+ Best States ------------- Heat Dissipation 25 Energy Generation 10 Energy Capacity 250 Matter Stores 300 Matter Capacity 300 Sight Range 16 Terrain Scan Density 10 Armor Coverage 80 Evasion (%) 55 Recoil Reduction 2 Item Schematics ----------------- None Robot Schematics ------------------ None Fabricated ------------ Nothing Alien Tech Used ----------------- None Achievements -------------- Hunted Challenges ------------ None Game ------ Seed ShockSubatomicCalibrator Manual? 0 Play Time 00:07:03 Cumulative 9.8 hours Start 2024.10.07 @ 11:24:09 End 2024.10.07 @ 11:30:14 Sessions 1 Manual Loads 0 Difficulty Rogue Special Mode None Game No. 17 Rogue 9 Adventurer 8 Explorer 0 Win Type - Total 0 Types 0/0/0/0/0/0/0/0/0 Lore% 5 Gallery% 17 Achievement% 17 Wizard Run 0 Options --------- Layout 1 ASCII 0 Keyboard 0 Movement Mouse Keybinds 0 Fullscreen 1 Font 32/SmallcapsGlow Map View 50x35 Zoom Use 0% Tactical HUD 1 Map Filters NONE Filters NONE Steam 1 RUN: 981b037c-43e6-4407-992e-33d9e734b3f3